bitfinex-derivatives/quotes_BTCF0:USTF0_20251215
["timestamp","ask_amount","ask_price","bid_price","bid_amount"]
[1765784405806,2e-08,89638.0,89637.0,0.4293174]
[1765784406408,2e-08,89638.0,89637.0,0.0685174]
[1765784406710,2e-08,89638.0,89637.0,0.4293174]
[1765784407108,0.0001673,89646.0,89645.0,0.0843364]
[1765784407307,0.0001673,89646.0,89645.0,0.4451364]
[1765784408104,0.49230502,89655.0,89654.0,0.0675153]
[1765784408408,0.3608,89673.0,89654.0,0.0675153]
[1765784408409,0.13150502,89664.0,89663.0,0.0675142]
[1765784408605,0.54740502,89673.0,89672.0,0.067513]
[1765784408804,0.44044135,89673.0,89672.0,0.067513]
[1765784410205,0.45444135,89673.0,89672.0,0.068513]
[1765784410406,0.45544135,89673.0,89672.0,0.068513]
[1765784410711,0.44144135,89673.0,89672.0,0.067513]
[1765784410908,0.44344135,89673.0,89672.0,0.067513]
[1765784411304,0.4189,89673.0,89672.0,0.067513]
[1765784412404,0.4179,89673.0,89672.0,0.067513]
[1765784412914,0.4159,89673.0,89672.0,0.067513]
[1765784413109,0.4179,89673.0,89672.0,0.067513]
[1765784413515,0.38983,89673.0,89672.0,0.067513]
[1765784414000,0.4179,89673.0,89672.0,0.067513]
[1765784415015,0.0001673,89681.0,89680.0,0.0843321]
[1765784415319,0.0271973,89681.0,89680.0,0.0843321]
[1765784415812,0.0552673,89681.0,89680.0,0.0843321]
[1765784416717,0.0552673,89681.0,89680.0,0.0853321]
[1765784417115,0.0572673,89681.0,89680.0,0.0853321]
[1765784417507,0.0582673,89681.0,89680.0,0.0843321]
[1765784419112,0.0572673,89681.0,89680.0,0.0843321]
[1765784419302,0.0572673,89681.0,89680.0,0.0853321]
[1765784419615,0.0552673,89681.0,89680.0,0.0853321]
[1765784420010,0.0552673,89681.0,89680.0,0.0843321]
[1765784422414,0.0562673,89681.0,89680.0,0.0843321]
[1765784426316,0.0281973,89681.0,89680.0,0.0843321]
[1765784426517,0.0562673,89681.0,89680.0,0.0843321]
[1765784427015,0.0281973,89681.0,89680.0,0.0843321]
[1765784428126,0.0271973,89681.0,89680.0,0.0843321]
[1765784430827,0.0564773,89681.0,89680.0,0.0843321]
[1765784434126,0.0808276,89681.0,89680.0,0.0843321]
[1765784434423,0.0564773,89681.0,89680.0,0.0843321]
[1765784435225,0.08083636,89681.0,89680.0,0.0843321]
[1765784435626,0.08183636,89681.0,89680.0,0.0843321]
[1765784437116,0.08083636,89681.0,89680.0,0.0843321]
[1765784465546,0.05856,89680.0,89679.0,0.3608]
[1765784465753,0.08236214,89680.0,89679.0,0.3608]
[1765784466144,0.08236214,89680.0,89679.0,0.38827]
[1765784466343,0.08236214,89680.0,89679.0,0.41601]
[1765784467252,0.08336214,89680.0,89679.0,0.43251]
[1765784467444,0.05362214,89680.0,89679.0,0.43251]
[1765784467641,0.08436214,89680.0,89679.0,0.43251]
[1765784468544,0.08236214,89680.0,89679.0,0.43251]
[1765784468744,0.08336214,89680.0,89679.0,0.43251]
[1765784469146,0.08236214,89680.0,89679.0,0.43251]
[1765784478658,0.08236214,89680.0,89679.0,0.07171]
[1765784482057,0.02435906,89680.0,89679.0,0.07171]
[1765784482262,0.02136066,89680.0,89679.0,0.13156665]
[1765784483357,0.02136066,89680.0,89679.0,0.13356665]
[1765784484265,0.0289873,89681.0,89680.0,0.0663621]
[1765784485564,0.0289873,89681.0,89680.0,0.0673621]
[1765784485952,0.0587273,89681.0,89680.0,0.0673621]
[1765784486158,0.0587273,89681.0,89680.0,0.05621]
[1765784486358,0.0587273,89681.0,89680.0,0.05721]
[1765784486553,0.0587273,89681.0,89680.0,0.002]
[1765784487266,0.05844,89665.0,89664.0,0.0739073]
[1765784489863,0.05844,89665.0,89664.0,0.0749073]
[1765784490062,0.05844,89665.0,89664.0,0.0288773]
[1765784491366,0.05844,89665.0,89664.0,0.0736773]
[1765784494260,0.08276363,89665.0,89664.0,0.0736773]
[1765784497371,0.05844,89665.0,89664.0,0.0736773]
[1765784497775,0.08275552,89665.0,89664.0,0.0736773]
[1765784498077,0.08275552,89665.0,89664.0,0.0288773]
[1765784498266,0.08275552,89665.0,89664.0,0.0011673]
[1765784500466,0.44355552,89665.0,89664.0,0.0011673]
[1765784500666,0.05477,89645.0,89644.0,0.07374]
[1765784500868,0.07907171,89645.0,89644.0,0.02894]
[1765784501069,0.07907171,89645.0,89644.0,0.07374]
[1765784501267,0.05477,89645.0,89644.0,0.07374]
[1765784501978,0.05477,89645.0,89644.0,0.07774]
[1765784502679,0.05477,89645.0,89644.0,0.08174]
[1765784506374,0.0001673,89653.0,89652.0,0.07374]
[1765784506375,0.0549373,89653.0,89652.0,0.07374]
[1765784507673,0.0549373,89653.0,89652.0,0.07674]
[1765784508375,0.0549373,89653.0,89652.0,0.003]
[1765784508582,0.07915871,89653.0,89652.0,0.003]
[1765784508780,0.07915871,89653.0,89652.0,0.005]
[1765784511682,0.43995871,89653.0,89652.0,0.005]
[1765784521190,0.05871,89637.0,89636.0,0.0001673]
[1765784521484,0.44373141,89637.0,89636.0,0.0001673]
[1765784521874,0.44373141,89637.0,89636.0,0.0299673]
[1765784522283,0.44373141,89637.0,89636.0,0.0309673]
[1765784522685,0.44373141,89637.0,89636.0,0.0011673]
[1765784522988,0.44373141,89637.0,89636.0,0.0762273]
[1765784524678,0.02422141,89637.0,89636.0,0.0762273]
[1765784524877,0.05871,89645.0,89644.0,0.0862165]
[1765784525190,0.08297609,89645.0,89644.0,0.0862165]
[1765784525792,0.08297609,89645.0,89640.0,0.07506]
[1765784525793,0.05871,89641.0,89640.0,0.07506]
[1765784526092,0.08297609,89641.0,89640.0,0.07506]
[1765784526893,0.09413299,89641.0,89640.0,0.07506]
[1765784527984,0.09513299,89641.0,89640.0,0.07506]
[1765784528589,0.08397609,89641.0,89640.0,0.07506]
[1765784529796,0.08397609,89641.0,89640.0,0.086217]
[1765784536395,0.05411609,89641.0,89640.0,0.086217]
[1765784536585,0.02526609,89641.0,89640.0,0.086217]
[1765784537592,0.001,89641.0,89640.0,0.086217]
[1765784538596,0.1906589,89650.0,89649.0,0.0678359]
[1765784538801,0.08365378,89650.0,89649.0,0.05668]
[1765784540097,0.08365378,89650.0,89644.0,0.07395]
[1765784540098,0.05923,89645.0,89644.0,0.07395]
[1765784540300,0.08365378,89645.0,89644.0,0.07395]
[1765784541000,0.02442378,89645.0,89644.0,0.07395]
[1765784541297,0.02442378,89645.0,89644.0,0.43475]
[1765784541493,0.02542378,89645.0,89644.0,0.43475]
[1765784541693,0.05467378,89645.0,89644.0,0.43475]
[1765784541893,0.08465378,89645.0,89644.0,0.43475]
[1765784542497,0.08565378,89645.0,89644.0,0.43475]
[1765784542695,0.02642378,89645.0,89644.0,0.43475]
[1765784543298,0.02542378,89645.0,89644.0,0.43475]
[1765784544099,0.05367378,89645.0,89644.0,0.43475]
[1765784544301,0.02442378,89645.0,89644.0,0.43475]
[1765784544599,0.05367378,89645.0,89644.0,0.43475]
[1765784544800,0.02542378,89645.0,89644.0,0.43475]
[1765784546209,0.0593973,89653.0,89652.0,0.0851055]
[1765784546413,0.08382529,89653.0,89652.0,0.0851055]
[1765784547613,0.08582529,89653.0,89652.0,0.0851055]
[1765784547914,0.08782529,89653.0,89652.0,0.0851055]
[1765784549512,0.08382529,89653.0,89652.0,0.0851055]
[1765784549816,0.08782529,89653.0,89652.0,0.0851055]
[1765784550116,0.08582529,89653.0,89652.0,0.0851055]
[1765784550309,0.08782529,89653.0,89652.0,0.0851055]
[1765784551914,0.08582529,89653.0,89652.0,0.0851055]
[1765784552116,0.08682529,89653.0,89652.0,0.0851055]
[1765784552314,0.08482529,89653.0,89652.0,0.0851055]
[1765784552507,0.08582529,89653.0,89652.0,0.0851055]
[1765784558714,0.02659529,89653.0,89652.0,0.0851055]
[1765784559013,0.18892811,89670.0,89669.0,0.0689034]
[1765784559219,0.05746,89670.0,89669.0,0.0689034]
[1765784560821,0.05946,89670.0,89669.0,0.0689034]
[1765784561022,0.05946,89670.0,89669.0,0.08022574]
[1765784561218,0.06046,89670.0,89669.0,0.08022574]
[1765784561917,0.05946,89670.0,89669.0,0.08022574]
[1765784562617,0.05846,89670.0,89669.0,0.08022574]
[1765784562820,0.05946,89670.0,89669.0,0.08022574]
[1765784566822,0.05846,89670.0,89669.0,0.08022574]
[1765784567028,0.05946,89670.0,89669.0,0.0689034]
[1765784567623,0.05946,89670.0,89669.0,0.08000403]
[1765784569229,0.05946,89670.0,89669.0,0.0689034]
[1765784570532,0.05846,89670.0,89669.0,0.0689034]
[1765784570832,0.08362979,89670.0,89669.0,0.0689034]
[1765784572035,0.08362979,89670.0,89669.0,0.05775]
[1765784572226,0.05746,89665.0,89664.0,0.07461]
[1765784572426,0.08162979,89665.0,89664.0,0.07461]
[1765784573333,0.08262979,89665.0,89664.0,0.07461]
[1765784574032,0.08162979,89665.0,89664.0,0.07461]
[1765784574229,0.08362979,89665.0,89664.0,0.07461]
[1765784574725,0.08462979,89665.0,89664.0,0.07461]
[1765784574930,0.08462979,89665.0,89664.0,0.05775]
[1765784575627,0.08262979,89665.0,89664.0,0.05775]
[1765784575834,0.08262979,89665.0,89664.0,0.07461]
[1765784576037,0.08362979,89665.0,89664.0,0.07461]
[1765784576438,0.08162979,89665.0,89664.0,0.07461]
[1765784576638,0.08362979,89665.0,89664.0,0.07461]
[1765784577538,0.08362979,89665.0,89661.0,0.0001673]
[1765784577539,0.05852,89662.0,89661.0,0.0001673]
[1765784577737,0.08268979,89662.0,89661.0,0.0001673]
[1765784578841,0.08368979,89662.0,89661.0,0.0001673]
[1765784580234,0.08568979,89662.0,89661.0,0.0001673]
[1765784580938,0.08468979,89662.0,89661.0,0.0001673]
[1765784581147,0.08668979,89662.0,89661.0,0.0001673]
[1765784585848,0.80828979,89662.0,89661.0,0.0001673]
[1765784589143,0.80830286,89662.0,89661.0,0.0001673]
[1765784593752,1.50534286,89662.0,89661.0,0.0001673]
[1765784603561,1.50526286,89662.0,89661.0,0.0001673]
[1765784604159,1.56510656,89662.0,89661.0,0.0001673]
[1765784605147,1.50526286,89662.0,89661.0,0.0001673]
[1765784605359,1.14446286,89662.0,89661.0,0.0001673]
[1765784606566,0.05852,89649.0,89648.0,0.07132]
[1765784606754,0.08270286,89649.0,89648.0,0.07132]
[1765784623271,0.02418286,89649.0,89648.0,0.07132]
[1765784623580,0.08220307,89655.0,89654.0,0.05715]
[1765784625276,0.08320307,89655.0,89654.0,0.05715]
[1765784625477,0.08420307,89655.0,89654.0,0.05715]
[1765784631081,0.05607307,89655.0,89654.0,0.05715]
[1765784631282,0.02635307,89655.0,89654.0,0.05715]
[1765784631687,0.08420307,89655.0,89654.0,0.05715]
[1765784632477,0.08320307,89655.0,89654.0,0.05715]
[1765784633085,0.08220307,89655.0,89654.0,0.05715]
[1765784633384,0.08420307,89655.0,89654.0,0.05715]
[1765784637684,0.08320307,89655.0,89654.0,0.05715]
[1765784637884,0.08420307,89655.0,89654.0,0.05715]
[1765784641281,0.02635307,89655.0,89654.0,0.05715]
[1765784642278,0.002,89655.0,89654.0,0.05715]
[1765784642875,0.001,89655.0,89654.0,0.05715]
[1765784643689,0.0001673,89657.0,89656.0,0.05532]
[1765784643989,0.16118805,89664.0,89663.0,0.05532]
[1765784644185,0.05391783,89664.0,89663.0,0.05532]
[1765784645390,0.05391783,89664.0,89663.0,0.0664742]
[1765784647096,0.08130783,89664.0,89663.0,0.0664742]
[1765784647297,0.08130783,89664.0,89663.0,0.0674742]
[1765784648892,0.05708,89664.0,89663.0,0.0674742]
[1765784649093,0.08128221,89664.0,89663.0,0.0674742]
[1765784649293,0.05708,89664.0,89663.0,0.0674742]
[1765784650498,0.05708,89664.0,89663.0,0.0664742]
[1765784653293,0.0298573,89672.0,89671.0,0.0664732]
[1765784653594,0.08144275,89672.0,89671.0,0.0664732]
[1765784654190,0.08144275,89672.0,89671.0,0.05532]
[1765784656103,0.08244275,89672.0,89671.0,0.05532]
[1765784656601,0.08544275,89672.0,89671.0,0.05532]
[1765784656798,0.05708,89669.0,89668.0,0.38841]
[1765784656986,0.08127545,89669.0,89668.0,0.05532]
[1765784658405,0.08227545,89669.0,89668.0,0.05532]
[1765784659506,0.08427545,89669.0,89668.0,0.05532]
[1765784659712,0.08327545,89669.0,89668.0,0.05532]
[1765784659923,0.08427545,89669.0,89668.0,0.05532]
[1765784660111,0.08327545,89669.0,89668.0,0.05532]
[1765784660619,0.02619545,89669.0,89668.0,0.05532]
[1765784661113,0.002,89669.0,89668.0,0.05532]
[1765784662617,0.0298573,89672.0,89671.0,0.05532]
[1765784662918,0.08139215,89672.0,89671.0,0.05532]
[1765784664416,0.08239215,89672.0,89671.0,0.05532]
[1765784665316,0.08339215,89672.0,89671.0,0.05532]
[1765784665717,0.08239215,89672.0,89671.0,0.05532]
[1765784666019,0.08339215,89672.0,89671.0,0.05532]
[1765784673716,0.08239215,89672.0,89671.0,0.05532]
[1765784673914,0.08339215,89672.0,89671.0,0.05532]
[1765784675030,0.08239215,89672.0,89671.0,0.05532]
[1765784675234,0.08439215,89672.0,89671.0,0.05532]
[1765784675433,0.08339215,89672.0,89671.0,0.05532]
[1765784675824,0.08539215,89672.0,89671.0,0.05532]
[1765784676322,0.08439215,89672.0,89671.0,0.05532]
[1765784677524,0.05493215,89672.0,89671.0,0.05532]
[1765784677726,0.02731215,89672.0,89671.0,0.05532]
[1765784678029,0.05493215,89672.0,89671.0,0.05532]
[1765784678527,0.08414215,89672.0,89671.0,0.05532]
[1765784678727,0.08314215,89672.0,89671.0,0.05532]
[1765784678935,0.08214215,89672.0,89671.0,0.05532]
[1765784680134,0.05683,89665.0,89664.0,0.0712]
[1765784680326,0.08097485,89665.0,89664.0,0.0712]
[1765784680525,0.05683,89665.0,89664.0,0.0712]
[1765784683033,0.05783,89665.0,89664.0,0.0712]
[1765784683235,0.08302651,89665.0,89664.0,0.0712]
[1765784685143,0.08202651,89665.0,89664.0,0.0712]
[1765784685441,0.08302651,89665.0,89664.0,0.0712]
[1765784685740,0.08102651,89665.0,89664.0,0.0712]
[1765784685938,0.08302651,89665.0,89664.0,0.05621]
[1765784687039,0.08302651,89665.0,89656.0,0.07641665]
[1765784687229,0.05683,89657.0,89656.0,0.02703]
[1765784687434,0.44182651,89657.0,89656.0,0.02703]
[1765784687638,0.44182651,89657.0,89656.0,0.05621]
[1765784689234,0.44182651,89657.0,89656.0,0.07277]
[1765784689439,0.44282651,89657.0,89656.0,0.07277]
[1765784689742,0.08200904,89657.0,89656.0,0.07277]
[1765784690650,0.08300904,89657.0,89656.0,0.05621]
[1765784691639,0.08200904,89657.0,89656.0,0.05621]
[1765784691847,0.08300904,89657.0,89656.0,0.05621]
[1765784692144,0.08200904,89657.0,89656.0,0.05621]
[1765784692437,0.08300904,89657.0,89656.0,0.05621]
[1765784703947,0.002,89657.0,89656.0,0.05621]
[1765784704747,0.18882209,89666.0,89665.0,0.05758]
[1765784704945,0.08155207,89666.0,89665.0,0.05758]
[1765784707045,0.08355207,89666.0,89665.0,0.05758]
[1765784707450,0.08155207,89666.0,89665.0,0.05758]
[1765784707656,0.08555207,89666.0,89665.0,0.05758]
[1765784708255,0.08532891,89666.0,89665.0,0.05758]
[1765784710454,0.08332891,89666.0,89665.0,0.05758]
[1765784710659,0.08432891,89666.0,89665.0,0.05758]
[1765784710853,0.08332891,89666.0,89665.0,0.05758]
[1765784715352,0.02722572,89662.0,89661.0,0.05758]
[1765784715672,0.08131779,89662.0,89661.0,0.05758]
[1765784716252,0.08131779,89662.0,89661.0,0.07387]
[1765784716560,0.05136779,89662.0,89661.0,0.07387]
[1765784717562,0.08131779,89662.0,89661.0,0.07387]
[1765784717857,0.02414207,89662.0,89661.0,0.07387]
[1765784718069,0.05741,89670.0,89669.0,0.05758]
[1765784718255,0.08142328,89670.0,89669.0,0.05758]
[1765784718760,0.05741,89665.0,89664.0,0.05758]
[1765784718959,0.08142328,89665.0,89664.0,0.05758]
[1765784720351,0.08342328,89665.0,89664.0,0.05758]
[1765784720667,0.08342328,89665.0,89658.0,0.0274447]
[1765784720668,0.05741,89659.0,89658.0,0.07387]
[1765784720961,0.08142328,89659.0,89658.0,0.07387]
[1765784721469,0.08142328,89659.0,89658.0,0.05758]
[1765784722361,0.08242328,89659.0,89658.0,0.05758]
[1765784722665,0.08342328,89659.0,89658.0,0.05758]
[1765784727564,0.05347328,89659.0,89658.0,0.05758]
[1765784728155,0.02601328,89659.0,89658.0,0.05758]
[1765784728355,0.02601328,89659.0,89658.0,0.11743665]
[1765784728356,0.001,89659.0,89658.0,0.11743665]
[1765784728654,0.18928209,89670.0,89669.0,0.0687134]
[1765784728860,0.08187967,89670.0,89669.0,0.0687134]
[1765784730060,0.08287967,89670.0,89669.0,0.0687134]
[1765784731965,0.08187967,89670.0,89669.0,0.0687134]
[1765784732265,0.08387967,89670.0,89669.0,0.0687134]
[1765784734063,0.08287967,89670.0,89669.0,0.0687134]
[1765784734264,0.08387967,89670.0,89669.0,0.0687134]
[1765784734867,0.08287967,89670.0,89669.0,0.0687134]
[1765784736970,0.08287967,89670.0,89669.0,0.05756]
[1765784746270,0.05804,89665.0,89664.0,0.05777]
[1765784746575,0.08204967,89665.0,89664.0,0.05777]
[1765784747568,0.05804,89659.0,89658.0,0.05777]
[1765784747776,0.0820278,89659.0,89658.0,0.05777]
[1765784748978,0.0830278,89659.0,89658.0,0.05977]
[1765784749679,0.0830278,89659.0,89658.0,0.05777]
[1765784749877,0.0840278,89659.0,89658.0,0.05777]
[1765784750773,0.07396,89656.0,89655.0,0.0001673]
[1765784750981,0.0979478,89656.0,89655.0,0.0001673]
[1765784752185,0.0989478,89656.0,89655.0,0.0001673]
[1765784752376,0.42079113,89667.0,89655.0,0.0001673]
[1765784752377,0.3608,89685.0,89671.0,0.0689232]
[1765784752576,0.37682,89688.0,89671.0,0.4297232]
[1765784752874,0.13142365,89681.0,89671.0,0.4297232]
[1765784754671,0.13142365,89681.0,89671.0,0.4307232]
[1765784755277,0.13142365,89681.0,89671.0,0.4327232]
[1765784755982,0.37682,89688.0,89671.0,0.4327232]
[1765784756378,0.13142365,89681.0,89671.0,0.4327232]
[1765784757075,0.13142365,89681.0,89671.0,0.4337232]
[1765784758578,0.0565173,89672.0,89671.0,0.4337232]
[1765784758982,0.0565173,89672.0,89671.0,0.4317232]
[1765784759184,0.0565173,89672.0,89671.0,0.4327232]
[1765784759487,0.0292373,89672.0,89671.0,0.4327232]
[1765784759782,0.0001673,89672.0,89671.0,0.4317232]
[1765784760183,0.0001673,89672.0,89671.0,0.4297232]
[1765784760380,0.0001673,89672.0,89671.0,0.4307232]
[1765784760576,0.0272473,89672.0,89671.0,0.4307232]
[1765784760777,0.0545273,89672.0,89671.0,0.4297232]
[1765784761079,0.0545273,89672.0,89671.0,0.4307232]
[1765784762087,0.0545273,89672.0,89671.0,0.4317232]
[1765784762587,0.0545273,89672.0,89671.0,0.4307232]
[1765784762788,0.0545273,89672.0,89671.0,0.4317232]
[1765784764874,0.0545273,89672.0,89671.0,0.4307232]
[1765784765080,0.0545273,89672.0,89671.0,0.4317232]
[1765784765482,0.0545273,89672.0,89671.0,0.4307232]
[1765784766691,0.0545273,89672.0,89671.0,0.4297232]
[1765784772590,0.0001673,89672.0,89671.0,0.4297232]
[1765784773099,0.0272473,89672.0,89671.0,0.4297232]
[1765784773987,0.0545273,89672.0,89671.0,0.4297232]
[1765784774193,0.0545273,89672.0,89671.0,0.4307232]
[1765784774799,0.0545273,89672.0,89671.0,0.4297232]
[1765784775987,0.0001673,89672.0,89671.0,0.4297232]
[1765784777196,0.0545273,89672.0,89671.0,0.4297232]
[1765784778000,0.0545273,89672.0,89671.0,0.4317232]
[1765784778001,0.0001673,89672.0,89671.0,0.4317232]
[1765784778500,0.0001673,89672.0,89671.0,0.4307232]
[1765784778691,0.0001673,89672.0,89671.0,0.4297232]
[1765784780002,0.0001673,89672.0,89671.0,0.4307232]
[1765784780497,0.0001673,89672.0,89671.0,0.4297232]
[1765784780694,0.0001673,89672.0,89671.0,0.4307232]
[1765784780997,0.0001673,89672.0,89671.0,0.4317232]
[1765784786496,0.0545273,89672.0,89671.0,0.4317232]
[1765784786698,0.0545273,89672.0,89671.0,0.4307232]
[1765784786901,0.0545273,89672.0,89671.0,0.4317232]
[1765784787304,0.0545273,89672.0,89671.0,0.4307232]
[1765784787502,0.0545273,89672.0,89671.0,0.4317232]
[1765784789493,0.0545273,89672.0,89671.0,0.4307232]
[1765784789698,0.0545273,89672.0,89671.0,0.4317232]
[1765784790009,0.0545273,89672.0,89671.0,0.4307232]
[1765784790401,0.0545273,89672.0,89671.0,0.4297232]
[1765784790701,0.0001673,89672.0,89671.0,0.4297232]
[1765784791103,0.0301573,89672.0,89671.0,0.4297232]
[1765784792814,0.0301573,89672.0,89671.0,0.4307232]
[1765784793313,0.0301573,89672.0,89671.0,0.4297232]
[1765784793516,0.0301573,89672.0,89671.0,0.4307232]
[1765784794716,0.0001673,89672.0,89671.0,0.4307232]
[1765784794918,0.0301573,89672.0,89671.0,0.4307232]
[1765784795916,0.0301573,89672.0,89671.0,0.4297232]
[1765784796521,0.0301573,89672.0,89671.0,0.4307232]
[1765784796710,0.0301573,89672.0,89671.0,0.4317232]
[1765784797618,0.0001673,89672.0,89671.0,0.4317232]
[1765784798419,0.0001673,89672.0,89671.0,0.0709232]
[1765784798618,0.0001673,89672.0,89671.0,0.4317232]
[1765784799020,0.0001673,89672.0,89671.0,0.4307232]
[1765784799217,0.0001673,89672.0,89671.0,0.4317232]
[1765784799819,0.0001673,89672.0,89671.0,0.4307232]
[1765784800014,0.0001673,89672.0,89671.0,0.4317232]
[1765784800518,0.0001673,89672.0,89671.0,0.4307232]
[1765784800818,0.0001673,89672.0,89671.0,0.4317232]
[1765784801225,0.0001673,89672.0,89671.0,0.4307232]
[1765784802129,0.0001673,89672.0,89671.0,0.4317232]
[1765784804211,0.0001673,89672.0,89671.0,0.4307232]
[1765784804417,0.0001673,89672.0,89671.0,0.4317232]
[1765784805029,0.0001673,89672.0,89671.0,0.4297232]
[1765784805328,0.0001673,89672.0,89671.0,0.4317232]
[1765784807829,0.0001673,89672.0,89671.0,0.4307232]
[1765784808014,0.0001673,89672.0,89671.0,0.4317232]
[1765784813023,0.0001673,89672.0,89671.0,1.9317232]
[1765784816329,0.01602,89692.0,89671.0,1.9317232]
[1765784816330,0.05721,89694.0,89693.0,0.0683304]
[1765784816523,0.08104955,89694.0,89693.0,0.0683304]
[1765784817633,0.08404955,89694.0,89693.0,0.0683304]
[1765784817833,0.08704955,89694.0,89693.0,0.0683304]
[1765784818031,0.08704955,89694.0,89693.0,0.079384]
[1765784818934,0.08604955,89694.0,89693.0,0.079384]
[1765784819229,0.05459,89686.0,89685.0,1.0575273]
[1765784819426,0.07842955,89686.0,89685.0,0.0001673]
[1765784820431,0.07942955,89686.0,89685.0,0.0001673]
[1765784820833,0.08042955,89686.0,89685.0,0.0001673]
[1765784821341,0.08042955,89686.0,89685.0,0.0291073]
[1765784821838,0.08042955,89686.0,89685.0,0.0578673]
[1765784832238,0.08042955,89686.0,89685.0,0.0001673]
[1765784836850,0.06527,89676.0,89675.0,0.7366526]
[1765784837046,0.08910955,89676.0,89675.0,0.7366526]
[1765784837448,0.08910955,89676.0,89675.0,0.7654126]
[1765784837949,0.08910955,89676.0,89675.0,0.7674126]
[1765784838647,0.08910955,89676.0,89675.0,0.0708526]
[1765784838841,0.09010955,89676.0,89675.0,0.0698526]
[1765784839344,0.09010955,89676.0,89675.0,0.0688526]
[1765784839544,0.09110955,89676.0,89675.0,0.0688526]
[1765784849248,0.09010955,89676.0,89675.0,0.0688526]
[1765784849548,0.09110955,89676.0,89675.0,0.0688526]
[1765784850550,0.09110955,89676.0,89675.0,0.0577]
[1765784852257,0.08910955,89676.0,89675.0,0.0577]
[1765784852453,0.09110955,89676.0,89675.0,0.0577]
[1765784854947,0.09010955,89676.0,89675.0,0.0577]
[1765784855160,0.09110955,89676.0,89675.0,0.0577]
[1765784855555,0.09010955,89676.0,89675.0,0.0577]
[1765784855755,0.09110955,89676.0,89675.0,0.0577]
[1765784857462,0.08042955,89676.0,89675.0,0.0577]
[1765784857656,0.07942955,89676.0,89675.0,0.0577]
[1765784857962,0.08042955,89676.0,89675.0,0.0577]
[1765784858355,0.07942955,89676.0,89675.0,0.0577]
[1765784858555,0.08042955,89676.0,89675.0,0.0577]
[1765784864161,0.07942955,89676.0,89675.0,0.0577]
[1765784864362,0.08042955,89676.0,89675.0,0.0577]
[1765784871168,0.09822955,89676.0,89675.0,0.0577]
[1765784872572,0.10938205,89676.0,89675.0,0.02894]
[1765784872775,0.05491,89671.0,89670.0,0.05616]
[1765784873074,0.07874955,89671.0,89670.0,0.05616]
[1765784882085,0.07874955,89671.0,89670.0,0.06708]
[1765784884782,0.07874955,89671.0,89670.0,0.05616]
[1765784886388,0.07875814,89671.0,89670.0,0.05616]
[1765784889584,0.07875814,89671.0,89670.0,0.0741]
[1765784890797,0.05999113,89686.0,89685.0,0.02905]
[1765784890974,0.05908,89716.0,89715.0,0.05607]
[1765784891177,0.02933,89716.0,89715.0,0.4649579]
[1765784891375,0.05908,89716.0,89715.0,0.45404]
[1765784891579,0.05908,89716.0,89715.0,0.05607]
[1765784891785,0.01785,89720.0,89712.0,0.3608]
[1765784891786,0.05908,89713.0,89712.0,0.41687]
[1765784891980,0.05908,89713.0,89712.0,0.38985]
[1765784892187,0.05908,89713.0,89712.0,0.02905]
[1765784892376,0.05908,89713.0,89712.0,0.05607]
[1765784893289,0.06108,89713.0,89712.0,0.05607]
[1765784893790,0.06308,89713.0,89712.0,0.05607]
[1765784894290,0.06253407,89713.0,89712.0,0.05607]
[1765784895488,0.06053407,89713.0,89712.0,0.05607]
[1765784895689,0.06253407,89713.0,89712.0,0.05607]
[1765784896280,0.05953407,89713.0,89712.0,0.05607]
[1765784896480,0.06053407,89713.0,89712.0,0.05607]
[1765784897387,0.06053407,89713.0,89707.0,0.0001672]
[1765784897388,0.05908,89708.0,89707.0,0.0001672]
[1765784897593,0.0184119,89708.0,89707.0,0.0001672]
[1765784897889,0.0477419,89708.0,89707.0,0.0292172]
[1765784898093,0.0477419,89708.0,89707.0,0.0562372]
[1765784898693,0.0487419,89708.0,89707.0,0.0562372]
[1765784899194,0.0477419,89708.0,89707.0,0.0562372]
[1765784899493,0.0487419,89708.0,89707.0,0.0562372]
[1765784899994,0.0497419,89708.0,89707.0,0.0562372]
[1765784900384,0.0487419,89708.0,89707.0,0.0562372]
[1765784900587,0.0507419,89708.0,89707.0,0.0001672]
[1765784901093,0.0507419,89708.0,89707.0,0.0292172]
[1765784901290,0.0497419,89708.0,89707.0,0.0292172]
[1765784901495,0.0517419,89708.0,89707.0,0.0292172]
[1765784902094,0.0517419,89708.0,89707.0,0.0562372]
[1765784902494,0.0497419,89708.0,89707.0,0.0562372]
[1765784902884,0.0517419,89708.0,89707.0,0.0562372]
[1765784903086,0.0497419,89708.0,89707.0,0.0562372]
[1765784903285,0.0517419,89708.0,89707.0,0.0562372]
[1765784903487,0.0608905,89708.0,89707.0,0.0562372]
[1765784903681,0.0628905,89708.0,89707.0,0.0562372]
[1765784904187,0.0517419,89708.0,89707.0,0.0562372]
[1765784904596,0.0497419,89708.0,89707.0,0.0562372]
[1765784904793,0.0517419,89708.0,89707.0,0.0562372]
[1765784906589,0.0497419,89708.0,89707.0,0.0562372]
[1765784906789,0.0517419,89708.0,89707.0,0.0562372]
[1765784907593,0.0497419,89708.0,89707.0,0.0562372]
[1765784907786,0.0517419,89708.0,89707.0,0.0562372]
[1765784908189,0.0477419,89708.0,89707.0,0.0562372]
[1765784908390,0.0517419,89708.0,89707.0,0.0562372]
[1765784909798,0.0497419,89708.0,89707.0,0.0562372]
[1765784909999,0.0517419,89708.0,89707.0,0.0562372]
[1765784911300,0.0497419,89708.0,89707.0,0.0562372]
[1765784911497,0.0517419,89708.0,89707.0,0.0562372]
[1765784915500,0.0497419,89708.0,89707.0,0.0562372]
[1765784915701,0.0517419,89708.0,89707.0,0.0562372]
[1765784916898,0.0517419,89708.0,89707.0,0.0001672]
[1765784917199,0.4290919,89708.0,89707.0,0.0001672]
[1765784917398,0.4270919,89708.0,89707.0,0.0001672]
[1765784917597,0.4105419,89708.0,89707.0,0.0299672]
[1765784917802,0.4125419,89708.0,89707.0,0.0591072]
[1765784918188,0.4085419,89708.0,89707.0,0.0591072]
[1765784918394,0.4125419,89708.0,89707.0,0.0591072]
[1765784920799,0.4105419,89708.0,89707.0,0.0591072]
[1765784921003,0.4125419,89708.0,89707.0,0.0591072]
[1765784921599,0.4105419,89708.0,89707.0,0.0591072]
[1765784921804,0.4125419,89708.0,89707.0,0.0591072]
[1765784922398,0.4105419,89708.0,89707.0,0.0591072]
[1765784922594,0.4125419,89708.0,89707.0,0.0591072]
[1765784923409,0.4125419,89708.0,89707.0,0.0299672]
[1765784923905,0.4105419,89708.0,89707.0,0.0299672]
[1765784924105,0.4135419,89708.0,89707.0,0.0299672]
[1765784924305,0.4145419,89708.0,89707.0,0.0299672]
[1765784924496,0.0537419,89708.0,89707.0,0.0299672]